[Event "Titled Tuesday Blitz March 01 Early 2022"]
[White "Heinemann, Josefine"]
[Black "Cori T., Deysi"]
[WhiteFideId "12900460"]
[BlackFideId "3801934"]
[WhiteElo "2300"]
[BlackElo "2350"]
[Result "0-1"]
[Round "05"]
[TimeControl "180+1"]
[Date "2022.03.01"]
[WhiteClock "0:00:10"]
[BlackClock "0:01:11"]

1. Nf3 {[%clk 0:03:00]}  f5 {[%clk 0:02:59]} 2. d4 {[%clk 0:02:58]}  Nf6 {[%clk 0:02:59]} 3. c4 {[%clk 0:02:54]}  g6 {[%clk 0:02:59]} 4. Nc3 {[%clk 0:02:53]}  Bg7 {[%clk 0:02:58]} 5. Bg5 {[%clk 0:02:52]}  d6 {[%clk 0:02:57]} 6. Bxf6 {[%clk 0:02:48]}  Bxf6 {[%clk 0:02:57]} 7. e4 {[%clk 0:02:49]}  O-O {[%clk 0:02:53]} 8. Bd3 {[%clk 0:02:46]}  Bg7 {[%clk 0:02:49]} 9. exf5 {[%clk 0:02:44]}  Bxf5 {[%clk 0:02:49]} 10. Bxf5 {[%clk 0:02:43]}  Rxf5 {[%clk 0:02:50]} 11. O-O {[%clk 0:02:43]}  Nd7 {[%clk 0:02:49]} 12. Re1 {[%clk 0:02:39]}  c6 {[%clk 0:02:43]} 13. Qd3 {[%clk 0:02:21]}  e5 {[%clk 0:02:39]} 14. dxe5 {[%clk 0:02:20]}  Nxe5 {[%clk 0:02:39]} 15. Nxe5 {[%clk 0:02:20]}  Bxe5 {[%clk 0:02:40]} 16. Rad1 {[%clk 0:02:12]}  Qb6 {[%clk 0:02:39]} 17. Re2 {[%clk 0:02:04]}  Raf8 {[%clk 0:02:39]} 18. Ne4 {[%clk 0:01:56]}  R8f7 {[%clk 0:02:18]} 19. c5 {[%clk 0:01:20]}  dxc5 {[%clk 0:02:17]} 20. Ng3 {[%clk 0:01:20]}  Bxg3 {[%clk 0:02:15]} 21. hxg3 {[%clk 0:01:17]}  c4 {[%clk 0:02:15]} 22. Qd8+ {[%clk 0:01:15]}  Kg7 {[%clk 0:02:15]} 23. Qxb6 {[%clk 0:01:15]}  axb6 {[%clk 0:02:14]} 24. Rd4 {[%clk 0:01:11]}  b5 {[%clk 0:02:14]} 25. f3 {[%clk 0:01:10]}  Rd5 {[%clk 0:02:13]} 26. Rde4 {[%clk 0:01:05]}  Rd1+ {[%clk 0:02:10]} 27. Kf2 {[%clk 0:01:03]}  Ra1 {[%clk 0:02:05]} 28. a3 {[%clk 0:01:02]}  c3 {[%clk 0:02:05]} 29. bxc3 {[%clk 0:00:53]}  Rxa3 {[%clk 0:02:05]} 30. Rc2 {[%clk 0:00:47]}  Rd7 {[%clk 0:02:03]} 31. Ke2 {[%clk 0:00:46]}  Rb3 {[%clk 0:02:02]} 32. g4 {[%clk 0:00:45]}  h6 {[%clk 0:02:01]} 33. Re6 {[%clk 0:00:43]}  b4 {[%clk 0:01:59]} 34. cxb4 {[%clk 0:00:43]}  Rxb4 {[%clk 0:01:59]} 35. Kf2 {[%clk 0:00:42]}  Rbd4 {[%clk 0:01:55]} 36. Kg3 {[%clk 0:00:42]}  Kf7 {[%clk 0:01:55]} 37. Re3 {[%clk 0:00:39]}  Rd2 {[%clk 0:01:53]} 38. Rc1 {[%clk 0:00:34]}  Rb2 {[%clk 0:01:43]} 39. Rce1 {[%clk 0:00:33]}  Rc2 {[%clk 0:01:32]} 40. Re8 {[%clk 0:00:28]}  b5 {[%clk 0:01:28]} 41. Rc8 {[%clk 0:00:19]}  Rdd2 {[%clk 0:01:26]} 42. Rc7+ {[%clk 0:00:19]}  Kf6 {[%clk 0:01:25]} 43. Kh3 {[%clk 0:00:17]}  Rxg2 {[%clk 0:01:23]} 44. Rxc6+ {[%clk 0:00:17]}  Rxc6 {[%clk 0:01:24]} 45. Kxg2 {[%clk 0:00:17]}  b4 {[%clk 0:01:23]} 46. Kg3 {[%clk 0:00:16]}  b3 {[%clk 0:01:23]} 47. Rb1 {[%clk 0:00:16]}  Rb6 {[%clk 0:01:23]} 48. Kf4 {[%clk 0:00:16]}  Ke6 {[%clk 0:01:22]} 49. Ke4 {[%clk 0:00:17]}  Kf6 {[%clk 0:01:21]} 50. Rb2 {[%clk 0:00:16]}  Kg5 {[%clk 0:01:21]} 51. Ke3 {[%clk 0:00:16]}  Kh4 {[%clk 0:01:21]} 52. Kf4 {[%clk 0:00:14]}  Kh3 {[%clk 0:01:21]} 53. g5 {[%clk 0:00:13]}  h5 {[%clk 0:01:21]} 54. Rb1 {[%clk 0:00:12]}  Kg2 {[%clk 0:01:21]} 55. Rb2+ {[%clk 0:00:12]}  Kh3 {[%clk 0:01:21]} 56. Rb1 {[%clk 0:00:12]}  Rb5 {[%clk 0:01:20]} 57. Rb2 {[%clk 0:00:12]}  h4 {[%clk 0:01:14]} 58. Rb1 {[%clk 0:00:11]}  b2 {[%clk 0:01:14]} 59. Ke3 {[%clk 0:00:11]}  Kg2 {[%clk 0:01:13]} 60. f4 {[%clk 0:00:10]}  h3 {[%clk 0:01:14]} 61. f5 {[%clk 0:00:10]}  h2 {[%clk 0:01:11]} 62. fxg6 {[%clk 0:00:09]}  h1=Q {[%clk 0:01:12]} 63. Rxh1 {[%clk 0:00:09]}  Kxh1 {[%clk 0:01:12]} 64. Kf4 {[%clk 0:00:10]}  b1=Q {[%clk 0:01:11]} 0-1


[Site "https://www.chess.com"]

[Event "Titled Tuesday Blitz March 01 Early 2022"]
[White "Hoffmann, Asa"]
[Black "Melian, Juan Sebastian"]
[WhiteFideId "2001470"]
[BlackFideId "3706575"]
[WhiteElo "2117"]
[BlackElo "1842"]
[Result "0-1"]
[Round "05"]
[TimeControl "180+1"]
[Date "2022.03.01"]
[WhiteClock "0:00:55"]
[BlackClock "0:00:25"]

1. d4 {[%clk 0:02:55]}  Nf6 {[%clk 0:02:59]} 2. Bg5 {[%clk 0:02:51]}  Ne4 {[%clk 0:02:59]} 3. Bf4 {[%clk 0:02:48]}  d5 {[%clk 0:02:58]} 4. f3 {[%clk 0:02:45]}  Nf6 {[%clk 0:02:58]} 5. e4 {[%clk 0:02:44]}  dxe4 {[%clk 0:02:56]} 6. Nc3 {[%clk 0:02:43]}  Bf5 {[%clk 0:02:54]} 7. fxe4 {[%clk 0:02:39]}  Nxe4 {[%clk 0:02:54]} 8. Qf3 {[%clk 0:02:38]}  Nxc3 {[%clk 0:02:33]} 9. bxc3 {[%clk 0:02:37]}  Nc6 {[%clk 0:01:54]} 10. Bc4 {[%clk 0:02:23]}  e6 {[%clk 0:01:48]} 11. Ne2 {[%clk 0:02:16]}  Bd6 {[%clk 0:01:47]} 12. O-O {[%clk 0:02:14]}  Bxf4 {[%clk 0:01:45]} 13. Nxf4 {[%clk 0:02:13]}  Qd6 {[%clk 0:01:14]} 14. Nh5 {[%clk 0:02:04]}  O-O {[%clk 0:01:12]} 15. Bd3 {[%clk 0:01:57]}  Bg6 {[%clk 0:01:06]} 16. Ng3 {[%clk 0:01:53]}  Rab8 {[%clk 0:00:47]} 17. Rad1 {[%clk 0:01:52]}  Ne7 {[%clk 0:00:44]} 18. h4 {[%clk 0:01:47]}  Qd5 {[%clk 0:00:39]} 19. Qf4 {[%clk 0:01:41]}  Bxd3 {[%clk 0:00:37]} 20. Rxd3 {[%clk 0:01:38]}  Rbc8 {[%clk 0:00:37]} 21. Ne4 {[%clk 0:01:29]}  Ng6 {[%clk 0:00:32]} 22. Qe3 {[%clk 0:01:13]}  Nxh4 {[%clk 0:00:26]} 23. Ng3 {[%clk 0:00:55]}  Qxg2# {[%clk 0:00:25]} 0-1


[Site "https://www.chess.com"]

[Event "Titled Tuesday Blitz March 01 Early 2022"]
[White "Iskusnyh, Sergei"]
[Black "Gatterer, Florian"]
[WhiteFideId "4120027"]
[BlackFideId "811688"]
[WhiteElo "2492"]
[BlackElo "2218"]
[Result "1-0"]
[Round "05"]
[TimeControl "180+1"]
[Date "2022.03.01"]
[WhiteClock "0:01:25"]
[BlackClock "0:00:51"]

1. d4 {[%clk 0:03:00]}  Nf6 {[%clk 0:02:59]} 2. c4 {[%clk 0:02:59]}  g6 {[%clk 0:02:59]} 3. g3 {[%clk 0:02:58]}  c6 {[%clk 0:02:59]} 4. Bg2 {[%clk 0:02:58]}  d5 {[%clk 0:02:59]} 5. e3 {[%clk 0:02:58]}  Bg7 {[%clk 0:02:56]} 6. Ne2 {[%clk 0:02:58]}  O-O {[%clk 0:02:55]} 7. O-O {[%clk 0:02:58]}  Bg4 {[%clk 0:02:48]} 8. h3 {[%clk 0:02:51]}  Bf5 {[%clk 0:02:45]} 9. Nbc3 {[%clk 0:02:47]}  dxc4 {[%clk 0:02:40]} 10. e4 {[%clk 0:02:41]}  Bc8 {[%clk 0:02:40]} 11. Be3 {[%clk 0:02:37]}  b5 {[%clk 0:02:39]} 12. Qc2 {[%clk 0:02:26]}  Bb7 {[%clk 0:02:32]} 13. Rfd1 {[%clk 0:02:12]}  Qa5 {[%clk 0:02:20]} 14. b3 {[%clk 0:01:56]}  cxb3 {[%clk 0:02:09]} 15. axb3 {[%clk 0:01:55]}  Qb4 {[%clk 0:01:51]} 16. e5 {[%clk 0:01:44]}  Nfd7 {[%clk 0:01:11]} 17. Ne4 {[%clk 0:01:35]}  e6 {[%clk 0:01:10]} 18. Nd6 {[%clk 0:01:33]}  Nxe5 {[%clk 0:00:51]} 19. dxe5 {[%clk 0:01:32]}  Bxe5 {[%clk 0:00:51]} 20. Bc5 {[%clk 0:01:25]} 1-0


[Site "https://www.chess.com"]

[Event "Titled Tuesday Blitz March 01 Early 2022"]
[White "Kalajzic, Ivan"]
[Black "Selkirk, Rebecca"]
[WhiteFideId "14506378"]
[BlackFideId "14306514"]
[WhiteElo "2163"]
[BlackElo "1649"]
[Result "1-0"]
[Round "05"]
[TimeControl "180+1"]
[Date "2022.03.01"]
[WhiteClock "0:02:13"]
[BlackClock "0:01:22"]

1. d4 {[%clk 0:02:53]}  d5 {[%clk 0:02:59]} 2. Nc3 {[%clk 0:02:52]}  Nf6 {[%clk 0:02:58]} 3. Bg5 {[%clk 0:02:52]}  c5 {[%clk 0:02:56]} 4. e4 {[%clk 0:02:52]}  dxe4 {[%clk 0:02:53]} 5. d5 {[%clk 0:02:51]}  h6 {[%clk 0:02:43]} 6. Bxf6 {[%clk 0:02:47]}  exf6 {[%clk 0:02:43]} 7. Nxe4 {[%clk 0:02:46]}  Bf5 {[%clk 0:02:38]} 8. Bb5+ {[%clk 0:02:44]}  Nd7 {[%clk 0:02:36]} 9. Qe2 {[%clk 0:02:38]}  Qe7 {[%clk 0:01:39]} 10. Nd6+ {[%clk 0:02:31]}  Kd8 {[%clk 0:01:38]} 11. Nxf5 {[%clk 0:02:29]}  Qxe2+ {[%clk 0:01:38]} 12. Nxe2 {[%clk 0:02:28]}  g6 {[%clk 0:01:38]} 13. Ne3 {[%clk 0:02:26]}  Nb6 {[%clk 0:01:38]} 14. O-O-O {[%clk 0:02:24]}  Bd6 {[%clk 0:01:35]} 15. Nc4 {[%clk 0:02:23]}  Nxc4 {[%clk 0:01:28]} 16. Bxc4 {[%clk 0:02:23]}  a6 {[%clk 0:01:28]} 17. Ng3 {[%clk 0:02:13]}  b5 {[%clk 0:01:27]} 18. Be2 {[%clk 0:02:13]}  Kc7 {[%clk 0:01:23]} 19. Ne4 {[%clk 0:02:13]}  Be5 {[%clk 0:01:22]} 1-0


[Site "https://www.chess.com"]

[Event "Titled Tuesday Blitz March 01 Early 2022"]
[White "Kezin, Roman"]
[Black "Silva, Miguel Antonio Neto"]
[WhiteFideId "24124621"]
[BlackFideId "1911929"]
[WhiteElo "2509"]
[BlackElo "2204"]
[Result "0-1"]
[Round "05"]
[TimeControl "180+1"]
[Date "2022.03.01"]
[WhiteClock "0:00:01"]
[BlackClock "0:00:15"]

1. e4 {[%clk 0:03:00]}  e5 {[%clk 0:02:56]} 2. Nf3 {[%clk 0:03:00]}  Nc6 {[%clk 0:02:53]} 3. Nc3 {[%clk 0:03:00]}  Nf6 {[%clk 0:02:49]} 4. Rb1 {[%clk 0:03:01]}  g6 {[%clk 0:02:41]} 5. d4 {[%clk 0:03:01]}  exd4 {[%clk 0:02:39]} 6. Nxd4 {[%clk 0:03:02]}  Bg7 {[%clk 0:02:36]} 7. Nxc6 {[%clk 0:03:01]}  bxc6 {[%clk 0:02:35]} 8. Bg5 {[%clk 0:02:52]}  O-O {[%clk 0:02:29]} 9. Bd3 {[%clk 0:02:49]}  d5 {[%clk 0:02:25]} 10. O-O {[%clk 0:02:49]}  Qd6 {[%clk 0:02:21]} 11. Qf3 {[%clk 0:02:43]}  d4 {[%clk 0:02:19]} 12. Na4 {[%clk 0:02:24]}  Ng4 {[%clk 0:02:09]} 13. Bf4 {[%clk 0:02:20]}  Be5 {[%clk 0:02:05]} 14. Bxe5 {[%clk 0:02:19]}  Nxe5 {[%clk 0:02:01]} 15. Qg3 {[%clk 0:02:18]}  f5 {[%clk 0:01:57]} 16. exf5 {[%clk 0:02:00]}  Nxd3 {[%clk 0:01:52]} 17. Qxd3 {[%clk 0:01:47]}  Bxf5 {[%clk 0:01:48]} 18. Qd2 {[%clk 0:01:45]}  c5 {[%clk 0:01:45]} 19. b3 {[%clk 0:01:44]}  Rae8 {[%clk 0:01:38]} 20. Rbc1 {[%clk 0:01:44]}  c4 {[%clk 0:01:31]} 21. bxc4 {[%clk 0:01:43]}  Qa3 {[%clk 0:01:26]} 22. Qa5 {[%clk 0:01:39]}  Re7 {[%clk 0:01:20]} 23. h3 {[%clk 0:01:11]}  Rfe8 {[%clk 0:01:12]} 24. Rb1 {[%clk 0:00:29]}  Bxc2 {[%clk 0:01:05]} 25. Rb4 {[%clk 0:00:29]}  d3 {[%clk 0:00:58]} 26. Qd5+ {[%clk 0:00:26]}  Kg7 {[%clk 0:00:54]} 27. Qd4+ {[%clk 0:00:24]}  Kg8 {[%clk 0:00:54]} 28. c5 {[%clk 0:00:24]}  Qxa2 {[%clk 0:00:46]} 29. Nc3 {[%clk 0:00:23]}  Qe6 {[%clk 0:00:45]} 30. Nd5 {[%clk 0:00:22]}  Rf7 {[%clk 0:00:42]} 31. Ne3 {[%clk 0:00:22]}  a5 {[%clk 0:00:38]} 32. Rc4 {[%clk 0:00:21]}  Bb3 {[%clk 0:00:31]} 33. Rc3 {[%clk 0:00:22]}  Rd7 {[%clk 0:00:27]} 34. Qg4 {[%clk 0:00:11]}  Qxg4 {[%clk 0:00:26]} 35. Nxg4 {[%clk 0:00:12]}  a4 {[%clk 0:00:27]} 36. Nf6+ {[%clk 0:00:12]}  Kf7 {[%clk 0:00:27]} 37. Nxd7 {[%clk 0:00:13]}  d2 {[%clk 0:00:27]} 38. Rd3 {[%clk 0:00:10]}  d1=Q {[%clk 0:00:20]} 39. Rdxd1 {[%clk 0:00:11]}  Bxd1 {[%clk 0:00:21]} 40. Rxd1 {[%clk 0:00:12]}  Ra8 {[%clk 0:00:19]} 41. Ra1 {[%clk 0:00:04]}  Ke6 {[%clk 0:00:19]} 42. c6 {[%clk 0:00:04]}  Kd6 {[%clk 0:00:20]} 43. Nf6 {[%clk 0:00:04]}  h5 {[%clk 0:00:19]} 44. Ne4+ {[%clk 0:00:02]}  Kxc6 {[%clk 0:00:19]} 45. Kh2 {[%clk 0:00:03]}  Kb5 {[%clk 0:00:18]} 46. f3 {[%clk 0:00:02]}  c5 {[%clk 0:00:19]} 47. Kg3 {[%clk 0:00:03]}  Kb4 {[%clk 0:00:19]} 48. Rb1+ {[%clk 0:00:02]}  Ka3 {[%clk 0:00:17]} 49. Kf4 {[%clk 0:00:03]}  Ka2 {[%clk 0:00:17]} 50. Nc3+ {[%clk 0:00:04]}  Ka3 {[%clk 0:00:17]} 51. Ke4 {[%clk 0:00:05]}  Rd8 {[%clk 0:00:17]} 52. Ke3 {[%clk 0:00:04]}  Rd4 {[%clk 0:00:16]} 53. Nb5+ {[%clk 0:00:04]}  Ka2 {[%clk 0:00:16]} 54. Nc3+ {[%clk 0:00:04]}  Ka3 {[%clk 0:00:15]} 55. Rb5 {[%clk 0:00:04]}  Rc4 {[%clk 0:00:15]} 56. Kd3 {[%clk 0:00:04]}  Rb4 {[%clk 0:00:14]} 57. Rxc5 {[%clk 0:00:04]}  Rb3 {[%clk 0:00:14]} 58. Kc2 {[%clk 0:00:02]}  Rb2+ {[%clk 0:00:13]} 59. Kc1 {[%clk 0:00:03]}  Rxg2 {[%clk 0:00:13]} 60. Rc4 {[%clk 0:00:02]}  Kb3 {[%clk 0:00:13]} 61. Rc5 {[%clk 0:00:02]}  Rc2+ {[%clk 0:00:14]} 62. Kd1 {[%clk 0:00:02]}  Rxc3 {[%clk 0:00:15]} 63. Rb5+ {[%clk 0:00:02]}  Ka2 {[%clk 0:00:15]} 64. f4 {[%clk 0:00:01]}  Rxh3 {[%clk 0:00:14]} 65. Rb6 {[%clk 0:00:01]}  a3 {[%clk 0:00:15]} 66. Ke2 {[%clk 0:00:02]}  Rg3 {[%clk 0:00:14]} 67. Kf2 {[%clk 0:00:02]}  h4 {[%clk 0:00:15]} 68. Rb5 {[%clk 0:00:01]}  Rb3 {[%clk 0:00:15]} 0-1


[Site "https://www.chess.com"]

[Event "Titled Tuesday Blitz March 01 Early 2022"]
[White "Khamdamova, Afruza"]
[Black "Sargsyan, Anna M."]
[WhiteFideId "14210444"]
[BlackFideId "13308130"]
[WhiteElo "1660"]
[BlackElo "2271"]
[Result "0-1"]
[Round "05"]
[TimeControl "180+1"]
[Date "2022.03.01"]
[WhiteClock "0:00:23"]
[BlackClock "0:00:04"]

1. e4 {[%clk 0:03:00]}  c6 {[%clk 0:02:54]} 2. d4 {[%clk 0:02:59]}  d5 {[%clk 0:02:55]} 3. Nc3 {[%clk 0:02:58]}  dxe4 {[%clk 0:02:55]} 4. Nxe4 {[%clk 0:02:58]}  Nd7 {[%clk 0:02:56]} 5. Nf3 {[%clk 0:02:56]}  Ngf6 {[%clk 0:02:55]} 6. Bd3 {[%clk 0:02:56]}  Nxe4 {[%clk 0:02:54]} 7. Bxe4 {[%clk 0:02:55]}  Nf6 {[%clk 0:02:55]} 8. Bd3 {[%clk 0:02:55]}  Bf5 {[%clk 0:02:56]} 9. Bxf5 {[%clk 0:02:55]}  Qa5+ {[%clk 0:02:56]} 10. Bd2 {[%clk 0:02:54]}  Qxf5 {[%clk 0:02:57]} 11. O-O {[%clk 0:02:52]}  e6 {[%clk 0:02:57]} 12. Re1 {[%clk 0:02:51]}  Bd6 {[%clk 0:02:58]} 13. c4 {[%clk 0:02:49]}  O-O {[%clk 0:02:57]} 14. Bc3 {[%clk 0:02:48]}  Bf4 {[%clk 0:02:55]} 15. Qe2 {[%clk 0:02:40]}  Rad8 {[%clk 0:02:55]} 16. Rad1 {[%clk 0:02:40]}  h6 {[%clk 0:02:54]} 17. b3 {[%clk 0:02:38]}  Rfe8 {[%clk 0:02:54]} 18. Ne5 {[%clk 0:02:31]}  c5 {[%clk 0:02:29]} 19. Nf3 {[%clk 0:02:18]}  cxd4 {[%clk 0:02:17]} 20. Nxd4 {[%clk 0:02:16]}  Qg6 {[%clk 0:02:14]} 21. Qf3 {[%clk 0:02:09]}  e5 {[%clk 0:01:59]} 22. Nb5 {[%clk 0:02:01]}  Rxd1 {[%clk 0:01:40]} 23. Qxd1 {[%clk 0:01:53]}  e4 {[%clk 0:01:33]} 24. g3 {[%clk 0:01:40]}  e3 {[%clk 0:01:23]} 25. fxe3 {[%clk 0:01:26]}  Bxe3+ {[%clk 0:01:24]} 26. Kg2 {[%clk 0:01:25]}  a6 {[%clk 0:01:16]} 27. Nd4 {[%clk 0:01:23]}  b5 {[%clk 0:00:34]} 28. Nf3 {[%clk 0:01:10]}  bxc4 {[%clk 0:00:29]} 29. bxc4 {[%clk 0:01:10]}  Ng4 {[%clk 0:00:29]} 30. Bd4 {[%clk 0:00:54]}  Rd8 {[%clk 0:00:25]} 31. h3 {[%clk 0:00:44]}  Bxd4 {[%clk 0:00:16]} 32. Nxd4 {[%clk 0:00:44]}  Nf6 {[%clk 0:00:13]} 33. Qd2 {[%clk 0:00:35]}  Ne4 {[%clk 0:00:12]} 34. Qe3 {[%clk 0:00:34]}  Rxd4 {[%clk 0:00:10]} 35. Qxd4 {[%clk 0:00:33]}  Qxg3+ {[%clk 0:00:10]} 36. Kf1 {[%clk 0:00:32]}  Qxh3+ {[%clk 0:00:11]} 37. Ke2 {[%clk 0:00:32]}  Qg2+ {[%clk 0:00:10]} 38. Kd1 {[%clk 0:00:29]}  f5 {[%clk 0:00:07]} 39. Qd5+ {[%clk 0:00:28]}  Kh8 {[%clk 0:00:04]} 40. Qd8+ {[%clk 0:00:25]}  Kh7 {[%clk 0:00:04]} 41. Qd3 {[%clk 0:00:23]}  Nf2+ {[%clk 0:00:04]} 0-1


[Site "https://www.chess.com"]

[Event "Titled Tuesday Blitz March 01 Early 2022"]
[White "Korchmar, Vasiliy"]
[Black "Jumabayev, Rinat"]
[WhiteFideId "24131750"]
[BlackFideId "13702661"]
[WhiteElo "2370"]
[BlackElo "2561"]
[Result "0-1"]
[Round "05"]
[TimeControl "180+1"]
[Date "2022.03.01"]
[WhiteClock "0:00:02"]
[BlackClock "0:00:06"]

1. e4 {[%clk 0:03:00]}  c6 {[%clk 0:02:59]} 2. d4 {[%clk 0:03:00]}  d5 {[%clk 0:02:58]} 3. e5 {[%clk 0:03:01]}  Bf5 {[%clk 0:02:57]} 4. c4 {[%clk 0:03:02]}  e6 {[%clk 0:02:56]} 5. Nc3 {[%clk 0:03:02]}  Ne7 {[%clk 0:02:55]} 6. h4 {[%clk 0:02:57]}  h5 {[%clk 0:02:54]} 7. Nge2 {[%clk 0:02:55]}  Ng6 {[%clk 0:02:46]} 8. cxd5 {[%clk 0:02:27]}  exd5 {[%clk 0:02:44]} 9. Ng3 {[%clk 0:02:07]}  Bg4 {[%clk 0:02:42]} 10. Be2 {[%clk 0:02:02]}  Nxh4 {[%clk 0:02:12]} 11. Bxg4 {[%clk 0:02:00]}  hxg4 {[%clk 0:02:13]} 12. Qxg4 {[%clk 0:01:31]}  Nxg2+ {[%clk 0:02:13]} 13. Kf1 {[%clk 0:01:31]}  Rh4 {[%clk 0:02:08]} 14. Rxh4 {[%clk 0:01:25]}  Nxh4 {[%clk 0:02:07]} 15. Bg5 {[%clk 0:01:22]}  Be7 {[%clk 0:01:53]} 16. Bxh4 {[%clk 0:01:21]}  Bxh4 {[%clk 0:01:53]} 17. Nf5 {[%clk 0:01:21]}  Bg5 {[%clk 0:00:42]} 18. Nd6+ {[%clk 0:01:10]}  Kf8 {[%clk 0:00:26]} 19. Qh5 {[%clk 0:00:57]}  Qd7 {[%clk 0:00:15]} 20. Qh8+ {[%clk 0:00:36]}  Ke7 {[%clk 0:00:14]} 21. Nc8+ {[%clk 0:00:37]}  Ke6 {[%clk 0:00:11]} 22. Qh3+ {[%clk 0:00:37]}  f5 {[%clk 0:00:12]} 23. exf6+ {[%clk 0:00:38]}  Kxf6 {[%clk 0:00:11]} 24. Qh8 {[%clk 0:00:13]}  Na6 {[%clk 0:00:11]} 25. Qf8+ {[%clk 0:00:13]}  Kg6 {[%clk 0:00:11]} 26. Qd6+ {[%clk 0:00:08]}  Qxd6 {[%clk 0:00:10]} 27. Nxd6 {[%clk 0:00:09]}  Rb8 {[%clk 0:00:09]} 28. Re1 {[%clk 0:00:09]}  Kf6 {[%clk 0:00:08]} 29. Ne8+ {[%clk 0:00:06]}  Kf7 {[%clk 0:00:07]} 30. Nd6+ {[%clk 0:00:07]}  Kf6 {[%clk 0:00:07]} 31. Ne8+ {[%clk 0:00:06]}  Kf5 {[%clk 0:00:07]} 32. Nxg7+ {[%clk 0:00:06]}  Kg4 {[%clk 0:00:06]} 33. Kg2 {[%clk 0:00:05]}  Bf6 {[%clk 0:00:06]} 34. f3+ {[%clk 0:00:04]}  Kg5 {[%clk 0:00:06]} 35. Ne6+ {[%clk 0:00:04]}  Kf5 {[%clk 0:00:07]} 36. Kf2 {[%clk 0:00:02]}  Bh4+ {[%clk 0:00:06]} 0-1


[Site "https://www.chess.com"]

[Event "Titled Tuesday Blitz March 01 Early 2022"]
[White "Kozak, Antoni"]
[Black "Indjic, Aleksandar"]
[WhiteFideId "21832030"]
[BlackFideId "911925"]
[WhiteElo "2232"]
[BlackElo "2616"]
[Result "1-0"]
[Round "05"]
[TimeControl "180+1"]
[Date "2022.03.01"]
[WhiteClock "0:00:21"]
[BlackClock "0:00:07"]

1. Nf3 {[%clk 0:03:00]}  d5 {[%clk 0:02:59]} 2. e3 {[%clk 0:02:57]}  Nf6 {[%clk 0:02:57]} 3. c4 {[%clk 0:02:57]}  e6 {[%clk 0:02:57]} 4. Nc3 {[%clk 0:02:57]}  Bd6 {[%clk 0:02:55]} 5. b3 {[%clk 0:02:53]}  b6 {[%clk 0:02:54]} 6. Bb2 {[%clk 0:02:53]}  O-O {[%clk 0:02:53]} 7. g3 {[%clk 0:02:39]}  Bb7 {[%clk 0:02:52]} 8. Bg2 {[%clk 0:02:39]}  a6 {[%clk 0:02:52]} 9. O-O {[%clk 0:02:40]}  Nbd7 {[%clk 0:02:52]} 10. a4 {[%clk 0:02:23]}  Re8 {[%clk 0:02:47]} 11. cxd5 {[%clk 0:02:21]}  exd5 {[%clk 0:02:45]} 12. Ba3 {[%clk 0:02:22]}  Bxa3 {[%clk 0:02:37]} 13. Rxa3 {[%clk 0:02:22]}  Ne4 {[%clk 0:02:38]} 14. Qc2 {[%clk 0:02:15]}  Qe7 {[%clk 0:02:32]} 15. Raa1 {[%clk 0:02:15]}  c5 {[%clk 0:02:30]} 16. d3 {[%clk 0:02:13]}  Nxc3 {[%clk 0:02:23]} 17. Qxc3 {[%clk 0:02:13]}  Nf6 {[%clk 0:02:22]} 18. Rfc1 {[%clk 0:02:08]}  Rac8 {[%clk 0:02:20]} 19. h3 {[%clk 0:01:54]}  g6 {[%clk 0:02:10]} 20. Rab1 {[%clk 0:01:52]}  h6 {[%clk 0:01:58]} 21. Qd2 {[%clk 0:01:42]}  a5 {[%clk 0:01:52]} 22. Re1 {[%clk 0:01:35]}  Kg7 {[%clk 0:01:50]} 23. Qb2 {[%clk 0:01:35]}  Kh7 {[%clk 0:01:45]} 24. Rbd1 {[%clk 0:01:34]}  Nh5 {[%clk 0:01:32]} 25. Nd2 {[%clk 0:01:30]}  Ng7 {[%clk 0:01:08]} 26. d4 {[%clk 0:01:21]}  Ne6 {[%clk 0:01:05]} 27. dxc5 {[%clk 0:01:18]}  bxc5 {[%clk 0:01:06]} 28. Nf3 {[%clk 0:01:18]}  Red8 {[%clk 0:01:05]} 29. Ne5 {[%clk 0:01:10]}  Qf6 {[%clk 0:01:01]} 30. f4 {[%clk 0:01:07]}  Ng7 {[%clk 0:00:58]} 31. Qd2 {[%clk 0:01:05]}  Nf5 {[%clk 0:00:53]} 32. Kh2 {[%clk 0:01:02]}  Ra8 {[%clk 0:00:39]} 33. Ng4 {[%clk 0:01:01]}  Qg7 {[%clk 0:00:36]} 34. Qc1 {[%clk 0:00:58]}  h5 {[%clk 0:00:36]} 35. Ne5 {[%clk 0:00:57]}  Qf8 {[%clk 0:00:36]} 36. Rh1 {[%clk 0:00:49]}  f6 {[%clk 0:00:35]} 37. Nf3 {[%clk 0:00:44]}  Qe7 {[%clk 0:00:35]} 38. Rhe1 {[%clk 0:00:43]}  Re8 {[%clk 0:00:34]} 39. Rd3 {[%clk 0:00:37]}  Rad8 {[%clk 0:00:34]} 40. g4 {[%clk 0:00:34]}  hxg4 {[%clk 0:00:33]} 41. hxg4 {[%clk 0:00:35]}  Nh6 {[%clk 0:00:30]} 42. g5 {[%clk 0:00:35]}  Ng4+ {[%clk 0:00:27]} 43. Kg3 {[%clk 0:00:35]}  f5 {[%clk 0:00:28]} 44. Rh1+ {[%clk 0:00:34]}  Kg8 {[%clk 0:00:28]} 45. Qb2 {[%clk 0:00:32]}  d4 {[%clk 0:00:26]} 46. exd4 {[%clk 0:00:28]}  Qe2 {[%clk 0:00:26]} 47. Rd2 {[%clk 0:00:25]}  Qe7 {[%clk 0:00:06]} 48. dxc5 {[%clk 0:00:25]}  Qg7 {[%clk 0:00:06]} 49. Qxg7+ {[%clk 0:00:26]}  Kxg7 {[%clk 0:00:07]} 50. Rhd1 {[%clk 0:00:26]}  Rxd2 {[%clk 0:00:07]} 51. Rxd2 {[%clk 0:00:27]}  Re7 {[%clk 0:00:07]} 52. Bh3 {[%clk 0:00:19]}  Ne3 {[%clk 0:00:07]} 53. Ne5 {[%clk 0:00:18]}  Nd5 {[%clk 0:00:06]} 54. Bg2 {[%clk 0:00:18]}  Nb4 {[%clk 0:00:06]} 55. Bxb7 {[%clk 0:00:18]}  Rxb7 {[%clk 0:00:07]} 56. Rd7+ {[%clk 0:00:19]}  Rxd7 {[%clk 0:00:06]} 57. Nxd7 {[%clk 0:00:19]}  Nd5 {[%clk 0:00:06]} 58. c6 {[%clk 0:00:19]}  Kf7 {[%clk 0:00:06]} 59. Ne5+ {[%clk 0:00:19]}  Ke6 {[%clk 0:00:06]} 60. Nxg6 {[%clk 0:00:20]}  Kd6 {[%clk 0:00:07]} 61. Ne5 {[%clk 0:00:20]}  Nc3 {[%clk 0:00:06]} 62. g6 {[%clk 0:00:21]}  Ne4+ {[%clk 0:00:07]} 63. Kf3 {[%clk 0:00:21]} 1-0


[Site "https://www.chess.com"]